bitfinex/quotes_ETHUSD_20241207
["timestamp","ask_amount","ask_price","bid_price","bid_amount"]
[1733602913477,4.9400684,4018.8,4018.7,1.07047135]
[1733602915007,3.8971346,4018.8,4018.7,1.07047135]
[1733602915316,3.8971346,4018.8,4018.5,0.17231754]
[1733602915497,2.60361775,4018.7,4018.5,0.17231754]
[1733602915809,1.74188,4018.7,4018.5,0.17231754]
[1733602915991,1.0429338,4018.9,4018.5,0.17231754]
[1733602916195,0.86174832,4018.8,4018.5,0.17231754]
[1733602916374,1.7419,4018.6,4018.4,1.17047135]
[1733602916576,1.74194,4018.5,4018.4,0.27231754]
[1733602916806,1.2924684,4018.8,4018.4,1.34278889]
[1733602916990,1.74185,4018.7,4018.4,1.34278889]
[1733602917629,1.7419,4018.6,4018.4,1.34278889]
[1733602917895,1.0429338,4019.0,4018.7,0.17231754]
[1733602918114,1.0429338,4019.2,4019.0,0.17231754]
[1733602918283,1.0429338,4019.3,4019.0,0.17231754]
[1733602918611,1.0429338,4019.4,4019.0,0.17231754]
[1733602918783,0.86135124,4019.3,4019.0,0.17231754]
[1733602918979,1.74159,4019.3,4019.0,0.17231754]
[1733602919708,4.93798658,4019.2,4019.0,0.17231754]
[1733602919920,2.15340278,4019.1,4019.0,0.17231754]
[1733602920475,0.86135791,4019.1,4019.0,0.17231754]
[1733602920711,3.89509131,4019.1,4019.0,0.17231754]
[1733602920913,3.89509131,4019.1,4019.0,0.20888719]
[1733602921070,3.89509603,4019.1,4019.0,0.17231754]
[1733602921274,0.86136641,4019.1,4019.0,0.17231754]
[1733602921490,2.7845338,4019.3,4019.0,0.17231754]
[1733602921690,0.86130127,4019.2,4019.0,0.17231754]
[1733602921892,2.7845338,4019.3,4019.0,0.17231754]
[1733602922113,0.86130913,4019.2,4019.0,0.17231754]
[1733602922313,2.7845338,4019.3,4019.0,0.17231754]
[1733602922514,0.8612759,4019.2,4019.0,0.17231754]
[1733602922699,1.7416,4019.3,4019.0,0.17231754]
[1733602922902,1.0429338,4019.4,4019.0,0.17231754]
[1733602923119,0.86126825,4019.3,4019.0,0.17231754]
[1733602923316,1.0429338,4019.4,4019.0,0.17231754]
[1733602923627,0.86124032,4019.3,4019.1,0.03656965]
[1733602923834,1.0429338,4019.4,4019.2,1.07047135]
[1733602924121,1.0429338,4019.6,4019.3,0.17231754]
[1733602924289,0.86120306,4019.5,4019.3,0.17231754]
[1733602924487,1.0429338,4019.6,4019.3,0.17231754]
[1733602924688,1.0429338,4019.6,4019.5,1.07047135]
[1733602924900,2.15305955,4019.6,4019.5,1.07047135]
[1733602925083,2.15305955,4019.6,4019.5,1.107041]
[1733602925084,0.86122382,4019.6,4019.5,1.107041]
[1733602926032,1.0429338,4019.8,4019.7,0.17231754]
[1733602926203,2.1529355,4019.8,4019.7,0.93031754]
[1733602926527,0.5,4020.0,4019.7,0.96611407]
[1733602926528,1.5429338,4020.0,4019.7,0.96611407]
[1733602926730,1.5429338,4020.0,4019.9,1.07047135]
[1733602926890,0.5,4020.0,4019.9,1.07047135]
[1733602927094,0.5,4020.0,4019.9,1.28055024]
[1733602927291,0.5,4020.0,4019.9,1.31634677]
[1733602928126,2.16663794,4020.0,4019.9,0.03579653]
[1733602928310,2.16663794,4020.0,4019.8,0.17231754]
[1733602928512,3.19559143,4019.9,4019.8,0.17231754]
[1733602928691,0.86103794,4019.9,4019.8,0.17231754]
[1733602928891,2.15270987,4019.9,4019.8,0.17231754]
[1733602929290,0.86103794,4019.9,4019.8,0.17231754]
[1733602929798,3.19564332,4019.9,4019.8,0.17231754]
[1733602930147,4.93698332,4019.9,4019.7,0.1]
[1733602930431,3.19418531,4019.8,4019.7,0.1]
[1733602930597,2.15270952,4019.8,4019.7,0.1]
[1733602931726,3.19418531,4019.8,4019.6,1.07047135]
[1733602932037,0.86103794,4019.7,4019.6,1.07047135]
[1733602932205,2.1530647,4019.7,4019.6,1.07047135]
[1733602932595,0.86103794,4019.7,4019.5,0.17231754]
[1733602932793,1.04147579,4019.8,4019.5,0.17231754]
[1733602933008,1.04147579,4019.6,4019.5,0.17231754]
[1733602933190,3.19496505,4019.6,4019.5,0.17231754]
[1733602933844,3.19531377,4019.6,4019.5,0.17231754]
[1733602934071,2.15348926,4019.6,4019.5,0.17231754]
[1733602934355,3.19531377,4019.6,4019.5,0.17231754]
[1733602936141,2.15348926,4019.6,4019.5,0.17231754]
[1733602937444,0.8613957,4019.6,4019.5,0.17231754]
[1733602937647,1.04182451,4019.8,4019.5,0.17231754]
[1733602937955,2.15357258,4019.7,4019.5,0.17231754]
[1733602938167,1.04182451,4019.8,4019.5,0.17231754]
[1733602938362,2.15350526,4019.7,4019.5,0.17231754]
[1733602938559,1.04182451,4019.8,4019.7,0.1]
[1733602938857,3.19535407,4019.8,4019.7,0.1]
[1733602939028,1.04182451,4019.8,4019.7,0.13460671]
[1733602939229,3.19535848,4019.8,4019.7,0.13460671]
[1733602939866,3.19532771,4019.8,4019.7,0.13460671]
[1733602940219,3.19532771,4019.8,4019.7,0.1]
[1733602940358,2.1535032,4019.8,4019.7,1.20507806]
[1733602941361,2.1535032,4019.8,4019.7,1.17047135]
[1733602941658,0.86140128,4019.8,4019.7,1.20507806]
[1733602941832,1.54182451,4020.0,4019.9,0.17231754]
[1733602942027,3.69529469,4020.0,4019.9,0.17231754]
[1733602942224,2.65347018,4020.0,4019.9,0.20692425]
[1733602942462,2.65347018,4020.0,4019.9,0.17231754]
[1733602942766,4.50093181,4020.0,4019.9,0.17231754]
[1733602943557,3.69533181,4020.0,4019.9,0.17231754]
[1733602943772,3.69533181,4020.0,4019.9,0.20577069]
[1733602944283,2.6535073,4020.0,4019.9,0.20577069]
[1733602944567,3.69516927,4020.0,4019.9,1.27624204]
[1733602944771,2.65334476,4020.0,4019.9,1.27624204]
[1733602944934,3.69516927,4020.0,4019.9,1.27624204]
[1733602945135,2.65334476,4020.0,4019.9,1.27624204]
[1733602947069,1.3613379,4020.0,4019.9,1.27624204]
[1733602947277,1.3613379,4020.0,4019.9,2.23146624]
[1733602947577,0.5,4020.0,4019.9,2.23146624]
[1733602950082,0.5,4020.0,4019.9,3.97279624]
[1733602950381,0.5,4020.0,4019.9,2.23146624]
[1733602951887,0.5,4020.0,4019.9,1.41386624]
[1733602952245,0.5,4020.0,4019.9,1.27624204]
[1733602954791,0.5,4020.0,4019.9,0.20577069]
[1733602954994,0.5,4020.0,4019.9,1.27624204]
[1733602959075,0.5,4020.0,4019.9,2.05764204]
[1733602959856,0.5,4020.0,4019.9,3.79897204]
[1733602960055,0.5,4020.0,4019.9,4.18886924]
[1733602960383,0.5,4020.0,4019.9,4.31405738]
[1733602962495,0.5,4020.0,4019.9,4.18886924]
[1733602962652,0.5,4020.0,4019.9,2.44753924]
[1733602963685,0.5,4020.0,4019.9,0.20577069]
[1733602963890,0.5,4020.0,4019.9,1.27624204]
[1733602970069,0.5,4020.0,4019.9,2.03754204]
[1733602970385,0.5,4020.0,4019.9,3.80374549]
[1733602971198,0.5,4020.0,4019.9,2.03754204]
[1733602971583,0.5,4020.0,4019.9,0.20577069]
[1733602971907,0.5,4020.0,4019.9,1.27624204]
[1733602972070,0.5,4020.0,4019.9,1.66413724]
[1733602977265,0.5,4020.0,4019.9,1.27624204]
[1733602986112,0.5,4020.0,4019.9,0.03345315]
[1733602986266,3.90525039,4020.0,4019.9,0.03345315]
[1733602986468,6.2408339,4020.0,4019.7,0.27231754]
[1733602986663,2.15606621,4019.9,4019.7,0.27231754]
[1733602986908,0.86236039,4019.8,4019.7,0.27231754]
[1733602987274,0.86247664,4019.8,4019.7,0.27231754]
[1733602987592,2.15619034,4019.8,4019.7,0.27231754]
[1733602988969,0.86247664,4019.8,4019.7,0.27231754]
[1733602989772,2.1563821,4019.8,4019.7,0.27231754]
[1733602990306,0.86247664,4019.8,4019.7,0.27231754]
[1733602990907,2.15644452,4019.8,4019.7,0.27231754]
[1733602992084,2.15669537,4019.8,4019.7,0.27231754]
[1733602992508,2.15669537,4019.8,4019.0,4.74172]
[1733602992509,0.8016,4019.3,4019.0,1.0371452]
[1733602992677,2.5432,4019.3,4019.1,0.1]
[1733602992876,0.86278355,4019.2,4019.1,0.1]
[1733602993076,2.15706001,4019.2,4019.1,0.1]
[1733602993376,3.20060925,4019.2,4019.1,0.1]
[1733602993591,3.20060925,4019.2,4018.9,1.07047135]
[1733602993787,0.86278355,4019.1,4018.9,1.07047135]
[1733602994009,1.04354924,4019.2,4018.9,1.07047135]
[1733602994170,0.86257336,4019.1,4019.0,0.03006684]
[1733602994373,0.86257336,4019.1,4018.9,1.07047135]
[1733602994607,3.58673924,4019.3,4019.1,0.1]
[1733602994811,2.1559075,4019.2,4019.1,0.1]
[1733602995312,2.1559075,4019.2,4018.8,0.1]
[1733602995313,2.15588587,4019.2,4018.8,0.1]
[1733602995612,1.74164,4019.2,4018.8,0.1]
[1733602995816,0.862169,4019.1,4018.8,0.1]
[1733602995999,1.74164,4019.2,4018.8,0.1]
[1733602996179,1.74164,4019.2,4018.9,1.07047135]
[1733602996180,0.86217716,4019.1,4018.9,1.07047135]
[1733602996509,1.74164,4019.2,4018.9,1.07047135]
[1733602996696,0.86197223,4019.1,4018.9,1.07047135]
[1733602996896,1.74164,4019.2,4018.9,1.07047135]
[1733602997127,1.84514924,4019.3,4018.7,0.17231754]
[1733602997408,3.98403028,4019.2,4018.8,0.02921711]
[1733602997615,0.8619861,4019.1,4018.7,0.17231754]
[1733602997816,1.74174,4019.0,4018.7,0.17231754]
[1733602997974,0.7855,4018.9,4018.7,0.17231754]
[1733602998374,1.74183,4018.8,4018.5,0.1]
[1733602998611,1.74183,4018.8,4018.6,0.0292317]
[1733602999174,1.74185,4018.7,4018.6,0.0292317]
[1733602999411,2.52735,4018.7,4018.5,0.1]
[1733602999973,0.7855,4018.7,4018.5,0.1]
[1733603000185,1.7419,4018.6,4018.2,1.17047135]
[1733603001702,0.96840492,4018.7,4018.2,1.17047135]
[1733603001921,0.7855,4018.7,4018.2,1.17047135]
[1733603002581,0.7855,4018.7,4018.5,1.07047135]
[1733603007220,0.7855,4018.7,4018.6,0.02894041]
[1733603007527,0.7855,4018.7,4018.5,1.07047135]
[1733603008025,2.52736,4018.7,4018.2,1.17047135]
[1733603008345,1.74197,4018.5,4018.2,0.1]
[1733603008485,1.74197,4018.5,4018.3,0.02894041]
[1733603008884,1.74197,4018.5,4018.2,0.1]
[1733603009108,1.74197,4018.5,4018.4,0.02914953]
[1733603009308,1.7418,4018.9,4018.2,0.1]
[1733603009499,0.7711,4018.3,4018.2,0.1]
[1733603009913,0.7711,4018.3,4018.2,0.12914953]
[1733603012032,2.51313,4018.3,4018.2,0.02914953]
[1733603012546,1.74208,4018.2,4017.8,0.1]
[1733603012764,1.74211,4018.1,4017.8,0.1]
[1733603013550,0.7711,4018.3,4016.6,3.0]
[1733603013551,0.7711,4017.3,4016.8,0.1]
[1733603013750,0.7711,4017.3,4016.8,1.17047135]
[1733603014039,0.7711,4017.3,4016.9,0.02697123]
[1733603017192,1.74251,4017.2,4016.9,0.02697123]
[1733603018401,1.74232,4017.7,4016.9,0.02697123]
[1733603018402,1.74259,4017.0,4016.9,0.02697123]
[1733603018603,2.687949,4017.0,4016.9,0.02697123]
[1733603018884,0.945359,4017.0,4016.3,0.1]
[1733603019108,0.945359,4017.0,4016.1,0.17231754]
[1733603019305,1.74272,4016.8,4016.4,0.02746743]
[1733603019460,0.7711,4016.7,4016.1,0.17231754]
[1733603019664,0.7711,4016.7,4016.5,0.02819703]
[1733603019665,2.51382,4016.7,4016.5,0.02819703]
[1733603019864,2.51382,4016.7,4016.1,0.17231754]
[1733603020076,2.51382,4016.7,4016.6,0.02819703]
[1733603020317,2.51382,4016.7,4016.1,0.17231754]
[1733603020490,2.51382,4016.7,4016.6,0.02819703]
[1733603020816,2.51382,4016.7,4016.1,0.17231754]
[1733603021301,0.7711,4016.7,4016.2,0.02819703]
[1733603021522,1.74281,4016.5,4016.2,0.02819703]
[1733603021718,1.74281,4016.5,4015.9,1.17047135]
[1733603022126,1.74281,4016.5,4016.0,0.20051457]
[1733603022427,0.7711,4016.7,4016.2,0.1]
[1733603022596,2.51382,4016.7,4016.2,0.1]
[1733603022931,1.74278,4016.6,4016.3,0.02725712]
[1733603023131,0.7711,4016.7,4016.3,0.02725712]
[1733603023290,2.51382,4016.7,4016.2,0.1]
[1733603023620,2.51382,4016.7,4016.3,0.02725712]
[1733603023997,2.51382,4016.7,4016.2,0.1]
[1733603024319,2.51382,4016.7,4016.3,0.02725712]
[1733603024829,2.51382,4016.7,4016.2,0.1]
[1733603025186,2.51382,4016.7,4016.3,0.02725712]
[1733603025509,2.51382,4016.7,4016.2,0.1]
[1733603025900,2.51382,4016.7,4016.3,0.02725712]
[1733603026219,2.51382,4016.7,4016.2,0.1]
[1733603026425,2.51382,4016.7,4016.3,0.02725712]
[1733603026831,2.51382,4016.7,4016.2,0.1]
[1733603027008,2.51382,4016.7,4015.9,1.17047135]
[1733603027206,2.51382,4016.7,4016.0,0.02725712]
[1733603027406,1.74276,4016.6,4016.0,0.02725712]
[1733603027836,1.74285,4016.4,4016.0,0.02725712]
[1733603028021,2.5588,4016.3,4016.0,0.02725712]
[1733603031236,0.8159,4016.3,4016.0,0.02725712]
[1733603036029,0.8159,4016.3,4015.6,1.07047135]
[1733603036232,0.8159,4016.3,4016.1,0.02706836]
[1733603036442,0.8159,4016.3,4015.6,1.07047135]
[1733603036848,0.8159,4016.3,4015.7,0.02706836]
[1733603039455,2.55882,4016.3,4015.7,0.02706836]
[1733603039623,1.74299,4016.1,4015.7,0.02706836]
[1733603039824,2.55879,4016.3,4015.5,0.1]
[1733603040362,2.55879,4016.3,4015.6,0.02706836]
[1733603041741,0.8159,4016.3,4015.6,0.02706836]
[1733603043367,1.04840147,4016.3,4015.6,0.02706836]
[1733603043656,0.8159,4016.3,4015.6,0.02706836]
[1733603044071,1.04840147,4016.3,4015.6,0.02706836]
[1733603044361,0.8159,4016.3,4015.6,0.02706836]
[1733603044968,1.04840147,4016.3,4015.6,0.02706836]
[1733603045271,0.23267205,4016.2,4015.6,0.02706836]
[1733603045427,0.8159,4016.3,4015.6,0.02706836]
[1733603045630,0.23272242,4016.2,4015.3,1.83767135]
[1733603045825,0.8159,4016.3,4015.3,1.83767135]
[1733603046226,0.2327167,4016.2,4015.4,0.02721443]
[1733603046461,0.2327167,4016.1,4015.4,0.02721443]
[1733603046632,0.8159,4016.3,4015.4,0.02721443]
[1733603046971,0.813,4016.1,4015.4,0.02721443]
[1733603048066,0.813,4016.1,4015.5,0.1]
[1733603048361,0.23294204,4016.0,4015.5,0.1]
[1733603048562,0.813,4016.1,4015.6,0.02721443]
[1733603048770,2.11510673,4016.6,4015.6,1.09768578]
[1733603048937,2.11510673,4016.6,4015.9,1.07047135]
[1733603048938,1.04593267,4016.5,4015.9,1.07047135]
[1733603049261,0.23293267,4016.4,4015.9,1.07047135]
[1733603049460,1.15939501,4016.7,4015.7,0.7509]
[1733603049461,0.23294536,4016.3,4016.2,1.82137135]
[1733603049625,1.15939501,4016.7,4016.2,1.82137135]
[1733603049824,0.38613671,4016.6,4016.2,1.82137135]
[1733603050034,0.15321076,4016.6,4016.3,0.02756494]
[1733603050351,0.15321076,4016.6,4016.2,0.7509]
[1733603050669,0.23295552,4016.5,4016.2,0.7509]
[1733603050827,1.15939501,4016.7,4016.2,0.7509]
[1733603051159,0.23295059,4016.6,4016.3,1.09803629]
[1733603051367,1.15939501,4016.7,4016.3,1.09803629]
[1733603051523,0.23297641,4016.6,4016.3,1.09803629]
[1733603051732,1.15939501,4016.7,4016.3,1.09803629]
[1733603051958,0.23297407,4016.6,4016.3,1.09803629]
[1733603052163,1.15939501,4016.7,4016.3,1.09803629]
[1733603054539,1.15939501,4016.7,4016.3,0.02756494]
[1733603054863,0.2329858,4016.6,4016.3,0.02756494]
[1733603055067,0.13923808,4016.5,4016.1,1.24278889]
[1733603055270,0.13923808,4016.5,4016.4,0.02705269]
[1733603055453,0.37225076,4016.5,4016.1,1.24278889]
[1733603055629,0.13923808,4016.5,4016.1,1.24278889]
[1733603055829,2.90213501,4016.7,4016.1,1.24278889]
[1733603056140,1.09329627,4016.6,4016.1,1.24278889]
[1733603056466,0.23301402,4016.5,4016.1,1.24278889]
[1733603056666,1.15939501,4016.7,4016.2,0.7509]
[1733603056829,0.23302684,4016.6,4016.2,0.77795269]
[1733603057034,1.15939501,4016.7,4016.4,1.07047135]
[1733603057453,1.15939501,4016.7,4016.5,0.02705269]
[1733603057866,0.86109564,4016.6,4016.5,0.02705269]
[1733603058534,2.15337213,4016.6,4016.5,0.02705269]
[1733603058730,2.15337213,4016.6,4016.2,0.7509]
[1733603058731,3.42994467,4016.6,4016.2,0.7509]
[1733603058928,3.42994563,4016.5,4016.2,0.7509]
[1733603059157,2.15337213,4016.4,4016.3,0.02705269]
[1733603059934,0.86109564,4016.4,4016.2,0.7509]
[1733603060292,1.04354924,4016.5,4016.3,0.02705269]
[1733603060605,0.86189385,4016.4,4016.2,0.7509]
[1733603060814,1.04354924,4016.5,4016.4,1.09752404]
[1733603060930,2.15510336,4016.5,4016.4,1.07047135]
[1733603061135,3.19763258,4016.5,4016.4,1.09752404]
[1733603061562,3.19763258,4016.5,4016.4,1.07047135]
[1733603062075,2.15510336,4016.5,4016.4,1.32782982]
[1733603062274,2.15533901,4016.5,4016.4,5.13731602]
[1733603062475,1.15939501,4016.7,4016.4,4.06684467]
[1733603062775,1.15939501,4016.7,4016.4,4.09389736]
[1733603063147,0.86235181,4016.6,4016.4,4.09389736]
[1733603063352,1.15939501,4016.7,4016.4,4.09389736]
[1733603063676,0.8623509,4016.6,4016.4,4.09389736]
[1733603063861,1.15939501,4016.7,4016.4,4.09389736]
[1733603064236,0.86251778,4016.6,4016.4,4.09389736]
[1733603064436,1.15939501,4016.7,4016.4,4.09389736]
[1733603064669,0.86271606,4016.6,4016.4,4.09389736]
[1733603064883,2.20192423,4016.7,4016.5,0.40938974]
[1733603065036,1.15939501,4016.7,4016.5,0.40938974]
[1733603065235,1.15939501,4016.7,4016.5,0.43490785]
[1733603066250,0.86266842,4016.6,4016.5,0.43490785]
[1733603066453,1.15939501,4016.7,4016.5,0.43490785]
[1733603067853,0.86267688,4016.6,4016.5,0.43490785]
[1733603068778,0.86267688,4016.6,4016.5,2.17771785]
[1733603069081,1.04252922,4017.0,4016.6,1.74276]
[1733603069278,0.86251695,4016.9,4016.8,0.17231754]
[1733603069479,0.86251695,4016.9,4016.8,0.27231754]
[1733603069682,0.86251695,4016.9,4016.8,0.29783565]
[1733603069861,1.04252922,4017.1,4016.8,0.29783565]
[1733603070054,1.56304511,4017.3,4016.8,0.29783565]
[1733603070055,0.86246853,4017.0,4016.8,0.29783565]
[1733603070248,1.04252922,4017.1,4016.8,0.29783565]
[1733603070577,2.15589623,4017.0,4016.8,0.29783565]
[1733603070885,0.86236424,4016.9,4016.8,0.29783565]
[1733603071044,1.04252922,4017.1,4016.8,0.29783565]
[1733603071248,1.04252922,4017.1,4017.0,1.07047135]
[1733603071584,3.19826384,4017.1,4017.0,1.07047135]
[1733603071893,3.19826384,4017.1,4017.0,1.09598946]
[1733603072177,2.15573462,4017.1,4017.0,1.09598946]
[1733603073368,3.19826384,4017.1,4017.0,1.09598946]
[1733603074285,3.19826384,4017.1,4017.0,0.02551811]
[1733603074595,3.19826384,4017.1,4016.5,0.7685]
[1733603074596,2.15573462,4017.1,4016.5,0.94081754]
[1733603074768,1.04258276,4016.9,4016.8,0.1]
[1733603075075,2.1551801,4016.9,4016.8,0.1]
[1733603075585,2.1551801,4016.9,4016.8,0.27231754]
[1733603075781,1.04262477,4017.0,4016.8,0.27231754]
[1733603075782,1.04262477,4017.3,4016.8,0.27231754]
[1733603075986,2.15508625,4017.2,4016.8,0.27231754]
[1733603076289,0.8620345,4017.1,4016.8,0.27231754]
[1733603076444,1.04262477,4017.2,4016.8,0.27231754]
[1733603076643,0.86195942,4017.1,4016.8,0.27231754]
[1733603076846,0.86198093,4017.0,4016.8,0.27231754]
[1733603077079,1.04262477,4017.2,4016.8,0.27231754]
[1733603077282,2.15485273,4017.1,4016.8,0.27231754]
[1733603077481,0.86194109,4017.0,4016.8,0.27231754]
[1733603077680,1.04262477,4017.2,4016.8,0.27231754]
[1733603077986,0.86190184,4017.1,4016.8,0.27231754]
[1733603078149,1.04262477,4017.3,4016.8,0.27231754]
[1733603078345,2.15466196,4017.2,4016.8,0.27231754]
[1733603078577,0.86186478,4017.1,4016.8,0.27231754]
[1733603078789,1.04262477,4017.2,4016.8,0.27231754]
[1733603078943,0.86186582,4017.1,4016.8,0.27231754]
[1733603079161,1.04262477,4017.2,4016.8,0.27231754]
[1733603079364,0.86185142,4017.1,4016.8,0.27231754]
[1733603079566,2.78514477,4017.2,4016.8,0.27231754]
[1733603079799,2.15462345,4017.1,4016.8,0.27231754]
[1733603079972,0.8118,4016.9,4016.8,0.1]
[1733603080172,1.67367962,4016.9,4016.3,1.17047135]
[1733603080375,2.60459547,4016.8,4016.3,1.17047135]
[1733603080601,1.74269,4016.8,4016.4,0.02450204]
[1733603080900,1.74269,4016.8,4016.3,1.17047135]
[1733603081467,1.74274,4016.7,4016.3,1.17047135]
[1733603082576,1.74276,4016.6,4016.3,1.07047135]
[1733603082777,0.8118,4016.9,4015.8,0.17231754]
[1733603082778,0.8118,4016.4,4015.8,0.17231754]
[1733603082980,0.8118,4016.4,4015.8,1.07047135]
[1733603083283,2.60500123,4016.3,4015.9,0.02444364]
[1733603083486,3.1978783,4016.2,4015.8,1.07047135]
[1733603083681,2.15525353,4016.1,4016.0,0.02444364]
[1733603083966,2.15525353,4016.1,4015.8,1.07047135]
[1733603083967,0.86209123,4016.1,4015.8,1.07047135]
[1733603084171,1.04262477,4016.2,4016.0,0.02444364]
[1733603084367,0.86208519,4016.1,4015.8,1.07047135]
[1733603084573,1.04262477,4016.2,4016.1,0.02444364]
[1733603084780,3.19784137,4016.2,4016.1,0.02444364]
[1733603084980,3.19784137,4016.2,4016.1,1.07047135]
[1733603085189,2.1552166,4016.2,4016.1,1.09491499]
[1733603085365,0.86208664,4016.2,4016.1,1.86621499]
[1733603085570,1.04262477,4016.5,4016.1,1.86621499]
[1733603085805,2.15501545,4016.4,4016.1,1.84177135]
[1733603086015,0.86200618,4016.3,4016.1,1.84177135]
[1733603086181,1.04262477,4016.4,4016.1,1.84177135]
[1733603086393,2.15508515,4016.3,4016.2,0.02485247]
[1733603086968,0.86203406,4016.3,4016.2,0.02485247]
[1733603088381,2.15523216,4016.3,4016.2,0.02485247]
[1733603088972,3.19785693,4016.3,4016.2,0.02485247]
[1733603089298,3.19785693,4016.3,4016.1,1.07047135]
[1733603089502,0.86203406,4016.2,4016.1,1.07047135]
[1733603089898,2.15534209,4016.2,4016.1,1.07047135]
[1733603090522,2.15562651,4016.2,4016.1,1.07047135]
[1733603093593,0.8622506,4016.2,4016.1,1.07047135]
[1733603094294,1.04262477,4016.4,4016.3,0.1]
[1733603094510,0.86246338,4016.4,4016.3,0.1]
[1733603094908,1.04262477,4016.6,4016.3,0.1]
[1733603095219,2.1560602,4016.5,4016.4,0.17231754]
[1733603095523,2.15625737,4016.5,4016.4,1.24278889]
[1733603095721,2.15625737,4016.5,4016.4,1.45419778]
[1733603096083,2.15625737,4016.5,4016.4,1.47871366]
[1733603098402,3.19888214,4016.5,4016.4,1.47871366]
[1733603099295,2.15625737,4016.5,4016.4,1.47871366]
[1733603100030,3.19888214,4016.5,4016.4,1.47871366]
[1733603100228,3.19889483,4016.5,4016.4,1.26730477]
[1733603102198,3.19889483,4016.5,4016.4,0.02451588]
[1733603102411,3.71931517,4016.5,4016.1,1.07047135]
[1733603102614,1.04320627,4016.3,4016.1,1.07047135]
[1733603102825,3.19947633,4016.2,4016.1,1.07047135]
[1733603103197,2.15627006,4016.2,4016.1,1.07047135]
[1733603103602,2.15643951,4016.2,4016.1,1.07047135]
[1733603103891,0.8625758,4016.2,4016.1,1.07047135]
[1733603104094,2.15643864,4016.2,4016.1,1.09368671]
[1733603104336,8.5134995,4016.2,4016.1,0.02321536]
[1733603104486,1.74325,4015.5,4015.0,1.17047135]
[1733603104690,3.19981344,4015.4,4015.0,1.17047135]
[1733603104992,3.19981344,4015.3,4015.0,1.17047135]
[1733603105221,0.86246914,4015.2,4015.1,0.7515]
[1733603105446,0.86246914,4015.2,4015.1,1.82197135]
[1733603105602,1.0433748,4015.5,4015.1,1.82197135]
[1733603105834,2.15607072,4015.4,4015.1,1.82197135]
[1733603105992,2.15607072,4015.3,4015.1,1.82197135]
[1733603106187,1.0433748,4015.5,4015.1,1.82197135]
[1733603106431,2.15542306,4015.4,4015.1,1.07047135]
[1733603106639,0.86216922,4015.3,4015.1,1.07047135]
[1733603106923,1.8480748,4015.4,4015.1,1.07047135]
[1733603107126,0.86220424,4015.3,4015.1,1.07047135]
[1733603107425,2.548,4015.4,4015.1,1.07047135]
[1733603108128,0.8047,4015.4,4015.1,1.07047135]
[1733603108339,2.54799,4015.4,4015.1,1.07047135]
[1733603108687,1.74333,4015.3,4014.9,0.17231754]
[1733603108926,0.8047,4015.4,4014.8,1.07047135]
[1733603108927,1.74337,4015.2,4014.8,1.07047135]
[1733603109132,1.74342,4015.1,4014.7,0.1]
[1733603109353,0.8047,4015.4,4014.7,0.1]
[1733603109354,1.74346,4015.0,4014.7,0.1]
[1733603110037,1.7435,4014.9,4014.5,1.07047135]
[1733603110703,1.74355,4014.8,4014.5,1.07047135]
[1733603110900,1.74355,4014.8,4014.4,0.1]
[1733603110901,2.54825,4014.8,4014.4,0.1]
[1733603111131,1.74359,4014.7,4014.4,1.07047135]
[1733603111921,1.74364,4014.6,4014.4,1.07047135]
[1733603112535,0.8047,4014.8,4014.4,1.07047135]
[1733603112835,2.54825,4014.8,4014.4,1.07047135]
[1733603113416,0.8047,4014.8,4014.7,1.07047135]
[1733603114123,2.54824,4014.8,4014.7,1.07047135]
[1733603114326,2.54824,4014.8,4014.4,1.07047135]
[1733603115703,1.7436,4014.7,4014.4,1.07047135]
[1733603117111,1.74363,4014.6,4014.4,1.07047135]
[1733603117406,0.8047,4014.8,4013.9,0.17231754]
[1733603117600,0.8047,4014.2,4013.7,0.1]
[1733603117802,1.74385,4014.1,4013.7,1.17047135]
[1733603118038,0.8047,4014.2,4013.7,1.07047135]
[1733603118039,1.74389,4014.0,4013.7,1.07047135]
[1733603118355,1.74385,4014.1,4013.4,1.07047135]
[1733603118706,1.74385,4014.1,4013.3,0.1]
[1733603118707,1.74398,4013.8,4013.3,0.1]
[1733603118906,1.74398,4013.8,4013.4,1.07047135]
[1733603120239,0.8047,4014.2,4013.4,1.07047135]
[1733603120487,0.8047,4014.2,4013.2,0.17231754]
[1733603120612,1.74398,4013.8,4013.2,0.17231754]
[1733603120955,1.74407,4013.6,4013.0,1.17047135]
[1733603122915,1.74407,4013.6,4012.7,0.1]
[1733603123115,1.74425,4013.2,4012.7,0.1]
[1733603124545,0.7556,4013.1,4012.7,0.1]
[1733603125327,0.7556,4013.1,4012.4,0.1]
[1733603126728,2.49988,4013.1,4012.4,0.1]
[1733603126960,0.7556,4013.1,4012.4,0.1]
[1733603128129,2.49989,4013.1,4012.4,0.1]
[1733603129069,0.7556,4013.1,4012.4,0.1]
[1733603130829,2.49988,4013.1,4012.4,0.1]
[1733603131886,0.7556,4013.1,4012.4,0.1]
[1733603132377,2.49989,4013.1,4012.4,0.1]
[1733603132944,2.49989,4013.1,4012.3,0.7515]
[1733603132945,0.7556,4013.1,4012.3,0.7515]
[1733603133145,1.74434,4013.0,4012.3,0.7515]
[1733603133451,0.7556,4013.1,4012.5,0.1]
[1733603134281,0.7915,4013.5,4012.5,2.42497213]
[1733603135045,0.7915,4013.5,4012.7,0.17231754]
[1733603135248,0.7915,4013.5,4012.8,0.7774]
[1733603136957,1.744,4013.8,4012.8,0.7774]
[1733603137157,0.7915,4013.8,4012.9,1.74436]
[1733603137499,0.7915,4013.8,4013.0,0.27231754]
[1733603137649,2.53538,4014.1,4013.1,0.7774]
[1733603137992,0.7915,4014.1,4013.1,0.7774]
[1733603139060,0.7915,4014.1,4013.1,2.52167]
[1733603140490,0.7915,4014.1,4013.1,1.33584968]
[1733603140789,2.76756426,4014.8,4013.5,1.7441]
[1733603140975,0.23249426,4014.7,4013.7,0.7774]
[1733603141307,0.23249426,4014.7,4013.8,1.74397]
[1733603141483,1.02399426,4014.8,4013.8,1.74397]
[1733603141811,0.7915,4014.8,4013.8,1.74397]
[1733603142016,0.7915,4014.8,4013.9,1.74393]
[1733603142168,0.7915,4014.8,4014.1,2.59728967]
[1733603142505,1.16995953,4014.9,4014.2,0.7774]
[1733603142670,1.16995953,4014.9,4014.2,2.5212]
[1733603143112,1.16995953,4014.9,4014.5,2.42497213]
[1733603143413,1.16995953,4014.9,4014.6,0.7774]
[1733603144906,1.16995953,4014.9,4014.5,0.1]
[1733603145117,0.804,4014.8,4014.3,0.1]